bitfinex-derivatives/quotes_ETHF0:USTF0_20230402
["timestamp","ask_amount","ask_price","bid_price","bid_amount"]
[1680464565722,3.2078,1774.8,1774.2,1.0]
[1680464566014,0.143,1774.8,1774.2,1.0]
[1680464566211,0.143,1774.3,1774.2,1.0]
[1680464567418,0.143,1773.2,1772.8,4.952]
[1680464567725,0.143,1773.0,1772.4,3.2078]
[1680464568022,0.143,1773.5,1772.9,3.2078]
[1680464568213,3.2078,1773.9,1772.9,3.2078]
[1680464568525,0.143,1773.3,1772.5,8.0648]
[1680464568720,18.79635919,1774.1,1772.5,8.0648]
[1680464568721,3.2078,1773.7,1772.7,3.2078]
[1680464568927,3.48894793,1774.1,1773.6,3.2078]
[1680464569317,0.28114793,1774.1,1773.8,3.2078]
[1680464569517,0.13814793,1774.1,1773.9,3.2078]
[1680464570119,0.13814793,1774.1,1773.9,8.0648]
[1680464570624,0.143,1774.6,1774.1,4.857]
[1680464570922,0.143,1774.6,1774.4,3.2078]
[1680464571120,0.143,1774.6,1773.8,4.5948]
[1680464571319,3.2078,1774.4,1773.9,3.2078]
[1680464571520,10.613,1774.7,1773.9,0.0008]
[1680464572025,3.2078,1774.5,1773.9,0.0008]
[1680464572219,10.613,1774.7,1774.1,3.2078]
[1680464572415,10.613,1774.7,1773.3,27.15605687]
[1680464572416,5.0,1773.7,1773.3,10.2133]
[1680464572627,5.0,1774.3,1773.2,3.2078]
[1680464572919,5.0,1773.8,1773.2,3.2078]
[1680464573424,11.174,1774.7,1773.0,3.2078]
[1680464573425,7.4052,1773.7,1773.0,3.2078]
[1680464573720,3.2078,1774.1,1773.0,3.2078]
[1680464574023,3.2078,1774.4,1773.8,5.574]
[1680464574217,5.0,1774.3,1773.2,3.2078]
[1680464574417,5.0,1774.0,1773.2,3.2078]
[1680464575018,5.0,1774.0,1773.3,5.574]
[1680464575827,3.2078,1774.2,1773.3,5.574]
[1680464576130,3.2078,1774.2,1773.5,5.574]
[1680464576522,5.0,1774.3,1773.7,5.574]
[1680464576718,3.2078,1774.4,1773.7,5.574]
[1680464577015,5.0,1774.5,1773.9,5.574]
[1680464577214,5.0,1774.5,1774.1,5.574]
[1680464577621,5.0,1774.5,1774.3,5.574]
[1680464577824,5.0,1774.5,1774.2,3.2078]
[1680464578121,5.0,1774.5,1774.3,5.574]
[1680464578323,5.0,1774.5,1774.2,3.2078]
[1680464579025,5.0,1774.5,1774.3,5.574]
[1680464579530,10.613,1774.6,1774.3,5.574]
[1680464579927,3.2078,1774.6,1774.3,5.574]
[1680464580124,10.613,1774.6,1774.3,5.574]
[1680464580732,3.2078,1774.6,1774.3,5.574]
[1680464580931,11.613,1774.6,1774.3,5.574]
[1680464581228,10.613,1774.6,1774.3,5.574]
[1680464581620,7.4052,1774.6,1774.3,5.574]
[1680464582025,3.2078,1774.8,1774.3,5.574]
[1680464582238,3.2078,1775.2,1774.7,5.574]
[1680464582528,5.0,1775.3,1774.7,5.574]
[1680464582733,3.2078,1775.4,1774.9,5.574]
[1680464582734,8.2078,1775.4,1774.9,5.574]
[1680464583428,5.0,1775.4,1774.9,5.574]
[1680464584235,5.0,1775.5,1775.3,5.574]
[1680464584531,7.4052,1775.7,1775.3,5.574]
[1680464584733,5.0,1775.5,1775.3,5.574]
[1680464584928,5.0,1775.6,1775.3,5.574]
[1680464585226,5.0,1775.6,1774.6,9.5489]
[1680464585227,5.0,1774.9,1774.6,4.9541]
[1680464585430,8.2078,1775.3,1774.5,3.2078]
[1680464585733,3.2078,1775.8,1774.9,3.2078]
[1680464585929,7.9495,1775.8,1774.9,3.2078]
[1680464586136,3.2078,1776.0,1775.4,3.2078]
[1680464586328,3.2078,1776.0,1775.7,5.574]
[1680464586631,4.7417,1775.8,1775.6,3.2078]
[1680464587131,4.7417,1775.7,1775.6,3.2078]
[1680464587637,4.7417,1776.0,1775.6,3.2078]
[1680464587931,3.2078,1776.2,1775.6,3.2078]
[1680464587932,4.7417,1775.7,1775.6,3.2078]
[1680464588930,4.7417,1776.1,1775.6,3.2078]
[1680464589234,4.7417,1776.1,1775.8,3.2078]
[1680464590426,4.7417,1776.1,1775.4,11.27]
[1680464590427,3.2078,1776.2,1775.4,14.4778]
[1680464590627,4.7417,1775.8,1775.4,14.4778]
[1680464590828,4.7417,1776.1,1775.6,3.2078]
[1680464591140,7.9495,1776.2,1775.8,3.2078]
[1680464591333,4.7417,1776.2,1775.8,3.2078]
[1680464591535,3.2078,1776.6,1776.0,3.2078]
[1680464591840,4.7417,1776.4,1776.2,3.2078]
[1680464592033,3.2078,1776.6,1776.2,3.2078]
[1680464592831,4.7417,1776.7,1776.2,3.2078]
[1680464593037,4.7417,1776.7,1776.4,3.2078]
[1680464593436,4.7417,1776.7,1776.5,0.56498412]
[1680464593934,3.2078,1776.8,1776.5,0.56498412]
[1680464594134,4.7417,1776.7,1776.5,0.56498412]
[1680464594340,4.7417,1776.7,1776.2,3.2078]
[1680464594639,3.2078,1776.8,1776.3,0.54964192]
[1680464594839,1.0,1776.6,1776.4,3.2078]
[1680464595039,7.1469,1776.5,1776.4,3.2078]
[1680464595437,4.7417,1776.5,1776.4,3.2078]
[1680464595636,5.7417,1776.6,1776.4,3.2078]
[1680464596033,1.0,1776.6,1776.4,3.2078]
[1680464596439,1.0,1776.6,1776.5,5.574]
[1680464596839,4.7417,1777.1,1776.5,16.844]
[1680464597038,4.8127,1777.6,1776.5,16.844]
[1680464597039,2.4052,1776.9,1776.7,3.2078]
[1680464597240,2.4052,1776.8,1776.7,8.7818]
[1680464597533,2.4052,1776.8,1776.3,3.75744192]
[1680464597834,2.4052,1776.5,1776.3,4.3161264]
[1680464598040,2.4052,1776.5,1776.3,0.54964192]
[1680464598240,2.4052,1776.5,1775.8,1.0]
[1680464598241,5.0,1776.4,1775.8,1.0]
[1680464598440,2.4052,1775.9,1775.8,1.0]
[1680464599137,5.613,1775.9,1775.8,1.0]
[1680464599344,2.4052,1775.9,1775.8,1.0]
[1680464599839,5.613,1775.9,1775.8,1.0]
[1680464600543,2.4052,1775.9,1775.8,1.0]
[1680464601045,2.4052,1775.0,1774.6,3.2078]
[1680464601245,2.4052,1774.9,1774.6,3.2078]
[1680464601442,2.4052,1774.8,1774.6,3.2078]
[1680464601841,1.4052,1774.8,1774.6,3.2078]
[1680464602047,1.4052,1774.8,1774.4,8.7818]
[1680464602446,3.2078,1774.9,1774.4,8.7818]
[1680464602649,1.4052,1774.6,1774.4,8.7818]
[1680464604438,1.4052,1775.2,1774.4,19.9448]
[1680464604643,3.2078,1775.7,1774.9,5.574]
[1680464604851,3.2078,1775.7,1774.8,20.0518]
[1680464605051,1.4052,1775.2,1774.8,20.0518]
[1680464605747,1.4052,1775.2,1774.8,8.7818]
[1680464605944,3.2078,1775.5,1774.8,8.7818]
[1680464606147,1.4052,1775.1,1774.8,8.7818]
[1680464606545,3.2078,1775.5,1774.8,8.7818]
[1680464606749,1.4052,1774.9,1774.8,8.7818]
[1680464607348,1.0,1775.0,1774.8,8.7818]
[1680464607549,1.0,1775.2,1774.8,15.16814994]
[1680464607847,1.0,1775.2,1775.1,8.7818]
[1680464608548,1.0,1775.2,1775.1,8.82356363]
[1680464608953,1.0,1775.8,1775.4,5.574]
[1680464609150,3.2078,1776.4,1775.8,5.574]
[1680464609457,1.4052,1776.3,1775.9,0.32141598]
[1680464609747,1.4052,1776.3,1775.9,3.52921598]
[1680464609947,1.4052,1776.3,1776.0,5.574]
[1680464610650,1.4052,1776.0,1775.6,3.75721956]
[1680464611055,3.2078,1776.7,1775.8,3.2078]
[1680464611353,1.4052,1776.8,1776.0,3.2078]
[1680464611649,1.4052,1776.8,1776.3,5.574]
[1680464611855,1.4052,1776.8,1776.4,8.7818]
[1680464612049,1.4052,1777.0,1776.6,3.2078]
[1680464612750,1.4052,1776.8,1776.6,3.2078]
[1680464613358,1.4052,1776.8,1776.4,8.7818]
[1680464613964,1.4052,1776.8,1776.6,3.2078]
[1680464614256,1.4052,1777.1,1776.7,5.574]
[1680464614453,3.2078,1777.3,1776.9,5.574]
[1680464614654,1.4052,1777.1,1776.9,5.574]
[1680464615661,1.0,1777.0,1776.9,8.7818]
[1680464616256,1.4052,1777.6,1776.9,8.7818]
[1680464616447,1.4052,1777.4,1777.3,8.7818]
[1680464616649,1.4052,1777.6,1777.3,8.7818]
[1680464616853,1.4052,1777.2,1776.8,5.51716828]
[1680464617055,3.2078,1777.6,1776.8,5.51716828]
[1680464617056,1.4052,1777.0,1776.8,5.51716828]
[1680464617255,1.4052,1777.0,1776.7,14.4578]
[1680464617762,1.4052,1777.0,1776.9,8.7818]
[1680464618856,1.0,1777.4,1776.9,8.7818]
[1680464619056,1.0,1777.4,1777.3,5.574]
[1680464619457,2.4052,1777.4,1777.3,5.574]
[1680464619659,1.4052,1777.4,1777.3,5.574]
[1680464620766,1.4052,1777.7,1777.3,5.574]
[1680464621060,1.4052,1777.7,1777.5,5.574]
[1680464621265,1.4052,1777.7,1777.6,8.7818]
[1680464621870,1.4052,1777.7,1777.6,5.574]
[1680464622161,1.4052,1777.7,1777.5,5.574]
[1680464622365,1.4052,1777.7,1777.6,5.574]
[1680464623461,1.4052,1777.7,1777.5,5.574]
[1680464623766,1.4052,1777.7,1777.6,0.87537103]
[1680464625069,1.4052,1777.5,1777.3,4.2078]
[1680464625267,1.4052,1777.5,1777.3,1.0]
[1680464625470,4.613,1777.5,1777.3,1.0]
[1680464625667,4.613,1777.5,1777.4,0.405]
[1680464626161,1.4052,1777.5,1777.4,0.405]
[1680464626760,3.2078,1777.7,1776.9,5.574]
[1680464626965,1.4052,1777.0,1776.8,3.2078]
[1680464627271,1.4052,1777.0,1776.8,17.1898]
[1680464627564,1.4052,1777.0,1776.8,8.7818]
[1680464627771,1.4052,1777.0,1776.8,3.2078]
[1680464627972,3.2078,1777.1,1776.6,3.77746259]
[1680464628267,1.4052,1776.8,1776.6,8.7818]
[1680464628861,1.4052,1776.8,1776.6,17.1458]
[1680464629767,1.4052,1777.0,1776.6,17.1458]
[1680464629968,1.4052,1777.0,1776.8,3.2078]
[1680464630164,1.4052,1777.0,1776.9,6.574]
[1680464630958,1.4052,1777.0,1776.9,5.574]
[1680464631666,3.2078,1777.9,1776.9,13.982]
[1680464631862,3.2078,1777.9,1777.3,8.408]
[1680464632062,3.2078,1777.9,1777.4,5.574]
[1680464632463,3.2078,1777.9,1777.5,13.938]
[1680464633465,3.2078,1777.9,1777.5,8.364]
[1680464633869,3.2078,1777.9,1777.6,1.0]
[1680464634567,3.2078,1777.9,1777.2,13.982]
[1680464634765,3.2078,1777.7,1777.1,0.55807114]
[1680464634974,3.2078,1777.7,1777.0,4.6128]
[1680464635366,3.2078,1777.5,1777.0,3.2078]
[1680464635573,3.2078,1777.5,1777.0,8.7818]
[1680464635768,3.2078,1777.5,1776.9,1.0]
[1680464636273,3.2078,1777.5,1776.8,11.5718]
[1680464636478,3.2078,1777.5,1776.8,3.2078]
[1680464636764,3.2078,1777.3,1776.9,1.0]
[1680464636966,3.2078,1777.3,1776.7,1.0]
[1680464637768,3.2078,1777.3,1776.7,9.7818]
[1680464638271,3.2078,1777.3,1777.0,14.005]
[1680464638467,3.2078,1777.7,1777.1,1.0]
[1680464639075,3.2078,1777.7,1777.2,0.67821946]
[1680464639468,3.2078,1777.7,1777.2,9.11321946]
[1680464639775,3.2078,1777.7,1777.2,0.67821946]
[1680464640469,3.2078,1777.7,1777.2,15.68721946]
[1680464640676,3.2078,1777.9,1777.3,1.0]
[1680464641877,3.2078,1777.7,1777.3,1.0]
[1680464642469,3.2078,1777.7,1777.2,14.68721946]
[1680464642770,3.2078,1777.7,1777.3,4.2078]
[1680464643075,3.2078,1777.7,1777.2,9.11321946]
[1680464643279,3.2078,1777.5,1777.2,0.67821946]
[1680464643578,3.2078,1777.5,1776.9,1.0]
[1680464643873,3.2078,1777.3,1776.9,1.0]
[1680464644269,3.2078,1777.3,1776.9,6.574]
[1680464644570,3.2078,1777.3,1776.9,1.0]
[1680464644776,3.2078,1777.3,1776.8,4.2078]
[1680464645073,3.2078,1777.3,1776.5,11.6298]
[1680464645377,3.2078,1777.1,1776.6,5.574]
[1680464646474,3.2078,1777.1,1776.6,6.574]
[1680464646676,3.2078,1776.9,1776.5,11.6298]
[1680464646877,3.2078,1777.1,1776.5,17.2038]
[1680464647577,3.2078,1776.9,1776.5,17.2038]
[1680464648078,3.2078,1776.9,1776.5,11.6298]
[1680464648271,3.2078,1776.9,1776.5,3.2078]
[1680464648474,3.2078,1776.9,1776.4,0.55977791]
[1680464648667,3.2078,1776.9,1776.2,18.48170025]
[1680464648981,3.2078,1776.7,1776.2,24.05570025]
[1680464649280,3.2078,1776.7,1776.2,17.2038]
[1680464649475,3.2078,1776.5,1776.2,0.56623967]
[1680464649677,3.2078,1776.5,1776.0,11.6438]
[1680464649678,3.2078,1776.5,1776.0,13.28936606]
[1680464649873,3.2078,1776.5,1776.0,11.6438]
[1680464650176,3.2078,1776.5,1776.1,5.574]
[1680464650372,3.2078,1776.5,1776.1,6.574]
[1680464651488,3.2078,1776.5,1776.2,1.0]
[1680464651977,3.2078,1776.5,1776.1,6.574]
[1680464652679,3.2078,1776.5,1776.0,11.6438]
[1680464653680,3.2078,1776.5,1776.1,0.2243955]
[1680464654179,12.0,1776.8,1776.1,0.2243955]
[1680464654180,3.2078,1776.3,1776.1,0.2243955]
[1680464654677,3.2078,1776.3,1775.9,2.16660341]
[1680464655378,3.2078,1776.3,1776.0,1.0]
[1680464655580,3.2078,1777.2,1776.2,8.7818]
[1680464655778,3.2078,1777.2,1776.4,13.972]
[1680464656186,3.2078,1777.2,1776.4,17.1798]
[1680464656375,3.2078,1777.2,1776.5,1.0]
[1680464656880,3.2078,1777.0,1776.5,1.0]
[1680464657675,3.2078,1777.2,1776.5,6.574]
[1680464657873,3.2078,1777.2,1776.6,8.7818]
[1680464658082,3.2078,1777.2,1776.9,5.574]
[1680464658473,3.2078,1777.2,1776.9,6.574]
[1680464658882,3.2078,1777.2,1777.0,1.0]
[1680464660381,3.2078,1777.4,1777.0,6.574]
[1680464661181,3.2078,1777.4,1776.9,1.0]
[1680464661386,3.2078,1777.4,1776.9,6.574]
[1680464661588,3.2078,1777.4,1777.0,17.2048]
[1680464661789,3.2078,1777.4,1777.1,6.574]
[1680464661985,3.2078,1777.4,1777.2,9.37]
[1680464662499,3.2078,1777.6,1777.3,1.0]
[1680464662682,3.2078,1777.6,1777.4,5.574]
[1680464664000,3.2078,1777.6,1777.5,6.574]
[1680464664188,3.2078,1777.8,1777.5,6.574]
[1680464664594,3.2078,1777.8,1777.7,13.996]
[1680464665394,3.2078,1777.8,1777.7,8.422]
[1680464666087,0.1,1778.0,1777.7,8.422]
[1680464666590,0.1,1778.0,1777.8,5.574]
[1680464668696,0.06325385,1778.0,1777.9,6.28065669]
[1680464669686,3.2078,1778.2,1777.9,6.28065669]
[1680464669887,3.2078,1778.2,1778.1,6.574]
[1680464670292,3.2078,1778.2,1778.1,7.26921416]
[1680464671195,3.2078,1778.4,1778.2,1.0]
[1680464672402,3.2078,1778.4,1778.1,0.69521416]
[1680464672692,1.0,1778.8,1778.1,0.69521416]
[1680464672693,3.2078,1778.2,1778.1,0.69521416]
[1680464672892,3.2078,1778.2,1777.8,5.574]
[1680464673100,3.2078,1778.2,1777.8,6.574]
[1680464673694,3.2078,1778.2,1777.9,6.574]
[1680464674592,3.2078,1778.2,1778.0,9.37]
[1680464674798,3.2078,1778.2,1778.1,5.574]
[1680464674993,3.2078,1778.2,1778.1,6.574]
[1680464675197,3.2078,1778.5,1778.2,1.5]
[1680464675401,3.2078,1778.7,1778.2,8.781]
[1680464675696,3.2078,1778.7,1778.2,17.132]
[1680464676592,3.2078,1778.7,1778.3,6.36745836]
[1680464676895,3.2078,1778.7,1778.4,1.0]
[1680464677998,3.2078,1778.7,1778.4,6.574]
[1680464678596,3.2078,1778.7,1778.6,8.428]
[1680464679094,3.2078,1778.7,1778.4,14.93]
[1680464679693,0.15,1779.0,1778.6,8.351]
[1680464679694,3.2078,1778.9,1778.6,8.351]
[1680464679893,3.2078,1778.9,1778.7,1.0]
[1680464680603,3.2078,1778.9,1778.4,18.1768]
[1680464683104,3.2078,1778.9,1778.4,17.1768]
[1680464683304,3.2078,1778.9,1778.6,5.574]
[1680464683699,3.2078,1778.9,1778.7,1.04763878]
[1680464684006,3.2078,1778.9,1778.8,5.574]
[1680464684201,0.15,1779.0,1778.7,15.97363878]
[1680464684504,0.15,1779.0,1778.8,6.574]
[1680464684706,0.15,1779.0,1778.9,1.0]
[1680464686404,0.15,1779.0,1778.9,6.574]
[1680464687204,3.2078,1779.3,1778.9,11.068]
[1680464687402,3.2078,1779.3,1779.1,4.494]
[1680464688307,3.2078,1779.3,1779.0,4.479]
[1680464688512,3.2078,1779.3,1779.2,4.494]
[1680464689208,3.2078,1779.3,1779.0,4.494]
[1680464692008,3.2078,1779.3,1779.1,6.574]
[1680464692611,3.2078,1779.3,1779.1,1.0]
[1680464692813,3.2078,1779.3,1779.0,4.494]
[1680464693018,3.2078,1779.3,1779.1,1.0]
[1680464693314,3.2078,1779.3,1779.2,4.494]
[1680464693907,3.2078,1779.3,1779.1,4.494]
[1680464694412,0.1,1780.0,1779.2,20.285]
[1680464694615,3.2078,1780.4,1779.9,10.053]
[1680464694920,3.2078,1780.4,1779.9,4.494]
[1680464695213,3.2078,1780.4,1779.7,8.7018]
[1680464695414,3.2078,1780.4,1779.9,7.7018]
[1680464695812,3.2078,1780.4,1780.3,4.494]
[1680464696109,3.2078,1780.4,1780.3,4.33922499]
[1680464696412,3.2078,1780.4,1779.8,1.0]
[1680464696715,3.2078,1780.2,1779.6,4.494]
[1680464696909,3.2078,1780.0,1779.6,4.494]
[1680464697310,3.2078,1780.2,1779.5,5.574]
[1680464697507,3.2078,1780.0,1779.6,4.494]
[1680464698313,3.2078,1780.0,1779.5,3.2078]
[1680464698714,3.2078,1780.0,1779.6,1.07994227]
[1680464699416,3.2078,1779.8,1779.6,1.07994227]
[1680464699720,3.2078,1779.8,1779.4,4.494]
[1680464700018,3.2078,1779.8,1779.1,7.7018]
[1680464700213,3.2078,1779.8,1779.1,3.2078]
[1680464700409,3.2078,1779.6,1779.2,4.479]
[1680464700911,3.2078,1779.6,1779.1,3.2078]
[1680464701111,3.2078,1779.6,1779.0,4.494]
[1680464701307,3.2078,1779.4,1779.0,4.494]
[1680464701718,3.2078,1779.4,1778.9,3.2078]
[1680464701915,3.2078,1779.2,1778.6,4.479]
[1680464702310,3.2078,1779.0,1778.6,4.479]
[1680464702511,3.2078,1779.2,1778.5,3.2078]
[1680464703215,3.2078,1779.0,1778.5,3.2078]
[1680464703410,3.2078,1779.0,1778.5,8.7818]
[1680464703611,3.2078,1779.3,1778.5,3.2078]
[1680464703812,3.2078,1779.1,1778.5,3.2078]
[1680464704040,3.2078,1778.9,1778.3,3.2078]
[1680464704918,3.2078,1778.7,1777.9,7.7018]
[1680464705216,3.2078,1778.5,1777.9,7.7018]
[1680464705518,3.2078,1778.3,1777.9,3.2078]
[1680464705720,3.2078,1778.3,1777.7,1.0]
[1680464705922,3.2078,1778.3,1777.6,4.494]
[1680464706222,3.2078,1778.1,1777.6,4.494]
[1680464706620,3.2078,1778.3,1777.6,4.494]
[1680464706924,3.2078,1779.0,1778.2,10.574]
[1680464707109,3.2078,1779.2,1778.8,4.479]
[1680464707316,3.2078,1779.2,1778.8,10.053]
[1680464707514,3.2078,1779.2,1778.8,7.6868]
[1680464707921,3.2078,1779.2,1778.6,1.0]
[1680464708311,3.2078,1779.2,1778.4,7.7038]
[1680464708715,3.2078,1779.0,1778.4,7.7038]
[1680464708920,3.2078,1779.0,1778.4,4.496]
[1680464709129,3.2078,1779.0,1778.4,7.7038]
[1680464709419,3.2078,1779.0,1778.5,1.0]
[1680464709927,3.2078,1779.0,1778.4,3.2078]
[1680464710719,3.2078,1779.0,1778.4,7.7038]
[1680464710916,3.2078,1779.0,1778.2,7.7038]
[1680464711315,3.2078,1779.2,1778.6,7.7038]
[1680464711628,3.2078,1779.2,1778.8,7.6738]
[1680464712623,3.2078,1779.4,1779.0,3.2078]
[1680464713927,3.2078,1779.2,1778.9,0.95967888]
[1680464714124,3.2078,1779.2,1778.5,9.6247]
[1680464714722,3.2078,1779.0,1778.4,43.2078]
[1680464715131,7.7038,1779.0,1778.4,40.0]
[1680464715435,3.2078,1778.6,1778.4,40.0]
[1680464716031,4.496,1778.5,1778.4,40.0]
[1680464716438,5.496,1778.5,1778.4,35.13901015]
[1680464716727,4.496,1778.5,1778.4,35.13901015]
[1680464716929,16.496,1778.5,1778.4,27.28381015]
[1680464717323,16.496,1778.5,1778.4,15.43481015]
[1680464718134,4.496,1778.5,1778.4,15.43481015]
[1680464719244,7.8686785,1778.9,1778.7,26.7286797]
[1680464719425,8.6758,1778.8,1778.7,23.8738797]
[1680464719626,8.6758,1778.8,1778.7,22.2792797]
[1680464719839,7.6758,1778.8,1778.7,13.0567797]
[1680464720034,7.0,1778.5,1777.6,5.0]
[1680464720234,3.2078,1777.9,1777.6,5.0]
[1680464720837,3.2078,1777.9,1777.5,5.0]
[1680464721230,3.2078,1777.7,1777.5,5.0]
[1680464721832,3.2078,1777.7,1777.3,13.1195]
[1680464722029,5.468,1777.6,1777.3,4.7791]
[1680464722235,4.53481256,1777.6,1777.3,9.7791]
[1680464722644,0.06681256,1777.6,1777.3,9.7791]
[1680464722841,3.2078,1777.5,1777.3,9.7791]
[1680464723743,3.2078,1777.5,1777.3,4.7791]
[1680464723943,3.2078,1777.5,1777.3,9.7791]
[1680464724536,3.2078,1777.5,1777.3,4.7791]
[1680464724737,4.496,1777.4,1777.3,4.7791]
[1680464724940,4.496,1777.4,1777.1,5.0]
[1680464725135,0.57479951,1777.8,1776.9,10.1852]
[1680464725136,4.496,1777.2,1776.9,10.1852]
[1680464725635,3.2078,1777.1,1776.9,10.1852]
[1680464727038,1.0,1778.0,1777.8,5.0]
[1680464727243,3.2078,1778.1,1778.0,5.0]
[1680464727442,3.2078,1778.1,1778.0,5.09033258]
[1680464727838,3.77142944,1778.3,1778.0,5.09033258]
[1680464728036,3.77142944,1778.3,1778.2,5.0]
[1680464728037,3.2078,1778.3,1778.2,5.0]
[1680464731652,3.2078,1778.3,1778.1,0.08129694]
[1680464731852,3.2078,1778.3,1778.2,5.0]
[1680464733958,0.48424738,1778.6,1778.5,5.0]
[1680464734252,2.61465942,1779.5,1778.8,5.0]
[1680464734253,3.2078,1779.5,1778.8,5.0]
[1680464734459,3.2078,1779.5,1779.4,5.0]
[1680464734649,3.2078,1779.5,1779.4,4.84512956]
[1680464736852,3.2078,1779.5,1779.1,1.0]
[1680464736853,3.2078,1779.5,1779.2,4.84512956]
[1680464737062,3.2078,1779.5,1779.4,4.84512956]
[1680464737857,3.2078,1779.5,1779.1,5.84512956]
[1680464738047,0.55631248,1779.7,1779.1,5.84512956]
[1680464738048,3.2078,1779.3,1779.1,5.84512956]
[1680464738248,3.2078,1779.6,1778.9,1.0]
[1680464738449,3.2078,1779.6,1779.4,4.84512956]
[1680464741053,3.76252444,1779.8,1779.2,4.2078]
[1680464741248,3.2078,1779.8,1779.6,4.84512956]
[1680464742763,3.2078,1779.8,1779.7,0.57905753]
[1680464742959,3.2078,1779.8,1779.6,4.84512956]
[1680464743863,7.6798,1779.8,1779.3,4.84512956]
[1680464744063,3.2078,1779.5,1779.3,4.84512956]
[1680464744759,3.2078,1779.7,1779.3,4.84512956]
[1680464745365,3.2078,1779.5,1779.4,4.84512956]
[1680464745556,3.2078,1779.5,1779.1,1.0]
[1680464745757,3.2078,1779.5,1779.2,4.84512956]
[1680464745956,3.2078,1779.8,1779.3,1.0]
[1680464746160,3.2078,1779.8,1779.6,4.84512956]
[1680464746364,3.2078,1779.8,1779.7,1.0]
[1680464746660,3.2078,1780.0,1779.7,1.0]
[1680464746867,3.2078,1780.0,1779.9,4.84512956]
[1680464747772,3.2078,1780.0,1779.6,4.84512956]
[1680464748472,0.55898493,1780.1,1779.6,4.84512956]
[1680464748660,3.2078,1780.1,1779.6,4.84512956]
[1680464749261,3.2078,1779.9,1779.6,4.84512956]
[1680464750662,3.2078,1779.9,1779.7,4.84512956]
[1680464751561,3.2078,1779.9,1779.4,1.0]
[1680464751770,3.2078,1779.9,1779.7,4.84512956]
[1680464752477,3.2078,1780.1,1779.7,4.84512956]
[1680464754974,3.2078,1780.1,1779.5,8.2142]
[1680464755180,3.2078,1779.9,1779.5,9.85152956]
[1680464755472,3.2078,1779.7,1779.5,9.85152956]
[1680464755678,3.2078,1780.1,1779.7,4.84512956]
[1680464755874,3.2078,1780.1,1779.3,13.2328]
[1680464755875,3.2078,1780.1,1780.0,4.84512956]
[1680464756073,3.2078,1780.1,1779.5,3.2078]
[1680464756275,3.2078,1780.1,1779.8,4.84512956]
[1680464757778,3.2078,1779.9,1779.8,4.84512956]
[1680464758678,3.2078,1780.1,1779.8,4.84512956]
[1680464761869,3.2078,1780.1,1779.4,1.0]
[1680464762071,4.494,1780.2,1779.6,4.84512956]
[1680464762072,3.2078,1779.9,1779.6,4.84512956]
[1680464762479,3.2078,1779.9,1779.4,5.84512956]
[1680464762679,3.2078,1779.9,1779.6,4.84512956]
[1680464763472,4.494,1780.2,1779.6,4.84512956]
[1680464763473,3.2078,1779.7,1779.6,4.84512956]
[1680464763874,3.2078,1779.9,1779.6,4.84512956]
[1680464765279,3.2078,1780.1,1779.6,4.84512956]
[1680464767076,2.234,1779.9,1779.6,4.84512956]
[1680464767882,5.4548,1780.1,1779.6,7.08812956]
[1680464768879,2.227,1779.9,1779.5,3.2078]
[1680464769081,2.247,1779.7,1779.4,4.84512956]
[1680464769476,2.247,1779.6,1779.2,4.84512956]
[1680464769683,3.2078,1779.7,1779.2,2.239]
[1680464769977,3.2078,1779.7,1779.4,4.84512956]
[1680464770385,3.2078,1779.9,1779.6,4.84512956]
[1680464770581,3.2078,1779.9,1779.5,3.2078]
[1680464770780,3.2078,1779.9,1779.8,4.84512956]
[1680464771382,2.226,1780.0,1779.8,4.84512956]
[1680464772784,2.226,1780.0,1779.9,0.39074579]
[1680464772976,2.226,1780.0,1779.9,0.33857509]
[1680464773178,2.226,1780.0,1779.6,1.0]
[1680464773179,2.226,1780.0,1779.8,4.84512956]
[1680464773575,2.226,1780.0,1779.9,0.38419663]
[1680464773872,0.56304603,1780.0,1779.9,3.61219663]
[1680464774073,3.2078,1780.1,1779.9,1.38419663]
[1680464774379,0.85803115,1780.5,1780.1,4.84512956]
[1680464774575,4.63421784,1780.6,1780.4,4.84512956]
[1680464774777,0.56838669,1780.6,1780.4,7.09212956]
[1680464774977,4.06583115,1780.8,1780.5,4.84512956]
[1680464775282,3.2078,1780.8,1780.5,4.84512956]
[1680464775481,4.06583115,1780.8,1780.7,4.84512956]
[1680464775785,5.4388,1780.8,1780.7,4.84512956]
[1680464775982,3.2078,1780.8,1780.7,4.84512956]
[1680464776787,0.85803115,1780.9,1780.7,4.84512956]
[1680464777080,4.21583115,1781.0,1780.8,2.23]
[1680464777284,4.21583115,1781.0,1780.8,7.07512956]
[1680464778383,4.78886138,1781.0,1780.6,2.247]
[1680464778687,2.247,1780.9,1780.5,1.0]
[1680464778872,3.10503115,1780.9,1780.7,4.84512956]
[1680464779089,2.247,1780.7,1780.4,4.84512956]
[1680464779479,3.10503115,1780.7,1780.6,4.84512956]
[1680464780689,3.10503115,1780.7,1780.6,0.55694581]
[1680464780885,3.08803115,1780.7,1780.6,0.55694581]
[1680464781087,3.39031096,1780.7,1780.3,4.84512956]